[Event "Czech Championship 2022"]
[Site "Usti nad Labem"]
[Date "2022.05.22"]
[Round "9.3"]
[White "Zwardon, Vojtech"]
[Black "Krejci, Jan"]
[Result "0-1"]
[ECO "A19"]
[WhiteElo "2482"]
[BlackElo "2520"]
[Annotator "TA"]
[PlyCount "86"]
[EventDate "2022.05.12"]
[EventType "swiss"]
[EventCountry "CZE"]
[SourceTitle "playchess.com"]
[Source "ChessBase"]
[SourceQuality "1"]
[TimeControl "40/5400+30:1800+30"]

{[%evp 9,86,-23,-15,-23,-18,-16,-19,-28,-8,-36,-36,-45,-34,-38,-36,-83,-32,-38,-24,-76,-68,-84,-94,-95,-87,-93,-89,-79,-59,-58,-66,-95,-65,-104,-65,-70,-54,-91,-77,-97,-48,-48,-48,-48,-48,-57,-19,-26,-26,-29,-23,-78,-19,-83,-86,-89,-63,-405,-410,-372,-345,-928,-930,-1070,-1017,-882,-319,-259,-256,-29976,-29977,-29974,-29974,-29984,-29985,-29985,-29986,-29996,-29985]} 1. c4 {[%emt 0:12:52]} Nf6 {[%emt 0:00:20]} 2. Nc3 {[%emt 0:00:07]} e6 {[%emt 0:00:25]} 3. e4 {[%emt 0:00:07]} c5 {[%emt 0:00:35]} 4. e5 {[%emt 0:00:30]} Ng8 {[%emt 0:00:05][%cal Bf6g8,Bg8e7,Be7f5,Bf5d4][%mdl 32]} 5. f4 {[%emt 0:00:07]} d6 {[%emt 0:02:04]} 6. Nf3 {[%emt 0:00:18] A19: English Opening: Flohr-Mikenas System with 3...c5.} dxe5 {[%emt 0:00:45] [#]} 7. Nxe5 $146 {[%emt 0:03:02]} ({Predecessor:} 7. fxe5 Nc6 8. d3 Nge7 9. Bf4 Nf5 10. g4 Nfd4 11. Bg2 Be7 12. O-O O-O 13. Kh1 {0-1 (60) Zwardon,V (2397)-Vorobiov,E (2582) Pardubice 2015}) 7... Ne7 {[%emt 0:06:58]} 8. g3 {[%emt 0:03:43] The position is equal.} Nbc6 {[%emt 0:03:54]} 9. Qa4 {[%emt 0:00:20]} Bd7 {[%emt 0:07:45]} 10. Nxd7 {[%emt 0:01:04]} Qxd7 {[%emt 0:00:07]} 11. Bg2 {[%emt 0:00:18]} Nf5 {[%emt 0:02:36]} 12. b3 {[%emt 0:12:04]} (12. Bxc6 $15 bxc6 13. b3) 12... Rd8 {[%emt 0:04:09]} ({Better is} 12... Nfd4 $17 {White must now prevent ...Nc2+.} 13. O-O Be7) 13. O-O {[%emt 0:01:43]} Be7 {[%emt 0:01:18]} 14. Ba3 {[%emt 0:01:58]} (14. Bxc6 $11 bxc6 15. Ba3) 14... O-O $17 {[%emt 0:02:16]} (14... Qxd2 15. Bxc6+ bxc6 16. Qxc6+ Qd7 17. Qxd7+ Kxd7 18. Ne4 $11) 15. Rad1 {[%emt 0:03:32]} Nfd4 {[%emt 0:05:02]} 16. Ne4 {[%emt 0:06:29][%cal Bc3e4,Be4f2,Bf2d3][%mdl 32]} b6 {[%emt 0:00:10]} 17. Bb2 {[%emt 0:02:57]} f5 {[%emt 0:06:26]} 18. Nf2 {[%emt 0:03:49]} Qc7 {[%emt 0:00:34] Black is more active.} 19. Rfe1 {[%emt 0:04:53]} Rd6 {[%emt 0:03:33]} 20. a3 {[%emt 0:04:11]} a5 {[%emt 0:03:39] Prevents b4.} 21. Nd3 {[%emt 0:07:00]} Bf6 {[%emt 0:02:04] Threatens to win with ...Nc2.} 22. Rc1 {[%emt 0:06:25] Prevents Nc2.} Rfd8 {[%emt 0:15:02][%cal Od4b3]} 23. b4 {[%emt 0:02:13]} cxb4 {[%emt 0:05:13][%cal Od4b3]} (23... Nb3 {looks sharper.} 24. Bxf6 gxf6 25. Rc3 Nxd2 26. bxc5 bxc5 27. Qc2 Ne4) 24. axb4 {[%emt 0:01:47] [#]} Nxb4 {[%emt 0:00:07]} (24... Nb3 $1 $17 {[%cal Rb3c1]} 25. Bxf6 (25. Qxb3 $2 Rxd3 26. Bc3 axb4 $19) 25... gxf6) 25. Nxb4 $15 {[%emt 0:00:38]} axb4 {[%emt 0:00:54]} 26. Qxb4 {[%emt 0:01:16]} Nc6 {[%emt 0:04:03]} 27. Bxc6 {[%emt 0:01:20] Hoping for Bxf6.} Qxc6 {[%emt 0:03:34]} 28. Rc2 {[%emt 0:01:10]} Bxb2 {[%emt 0:00:50]} 29. Rxb2 {[%emt 0:02:38]} h5 {[%emt 0:01:37]} 30. Re3 {[%emt 0:01:39]} (30. d4 $11) 30... Ra8 {[%emt 0:00:38]} (30... h4 $17 31. Qb5 (31. gxh4 e5 $17) 31... Qxb5 32. cxb5 (32. Rxb5 Rxd2 33. Rbe5 h3 $17) 32... Kf7) 31. Ra3 {[%emt 0:03:43]} (31. Qb5 $1 $11 {keeps the balance.}) 31... Rxa3 $17 {[%emt 0:01:54]} 32. Qxa3 {[%emt 0:00:01][%mdl 4096] Endgame KQR-KQR} h4 {[%emt 0:00:55]} 33. gxh4 $2 {[%emt 0:01:54][%mdl 8192] Now White is beyond hope.} (33. d3 $15) 33... e5 $19 {[%emt 0:01:38]} 34. h5 {[%emt 0:01:00] Inhibits Rg6+.} exf4 {[%emt 0:00:04]} 35. Kf2 $2 {[%emt 0:06:11]} (35. Rc2 Rd8 36. Qa1) 35... Re6 {[%emt 0:00:39]} 36. Qf3 {[%emt 0:01:47]} Qxc4 {[%emt 0:01:23] ...Qd4+ is the strong threat.} 37. Kg2 {[%emt 0:01:36]} Kh7 $2 {[%emt 0:00:38]} (37... Qd4 38. Rc2 b5) 38. d3 {[%emt 0:00:54]} Qd4 {[%emt 0:03:40]} 39. Ra2 {[%emt 0:01:35] [#]} (39. Rf2 $19 Rf6 40. Qxf4 Qxd3 41. Rd2) 39... Re3 {[%emt 0:00:39] Black mates.} ({Not} 39... Re1 40. Rf2 $17) 40. Qc6 {[%emt 0:00:19]} f3+ {[%emt 0:00:30]} 41. Kf1 {[%emt 0:01:49]} Qxd3+ {[%emt 0:04:23]} 42. Kf2 {[%emt 0:00:41]} Re2+ {[%emt 0:00:36]} 43. Kg3 {[%emt 0:00:17]} f4+ {[%emt 0:00:09] Weighted Error Value: White=0.63/Black=0.23 (precise)} 0-1

[Event "Czech Championship 2022"]
[Site "Usti nad Labem"]
[Date "2022.05.22"]
[Round "9.4"]
[White "Hracek, Zbynek"]
[Black "Rubes, Jan"]
[Result "1/2-1/2"]
[ECO "B32"]
[WhiteElo "2570"]
[BlackElo "2386"]
[Annotator "TA"]
[PlyCount "33"]
[EventDate "2022.05.12"]
[EventType "swiss"]
[EventCountry "CZE"]
[SourceTitle "playchess.com"]
[Source "ChessBase"]
[SourceQuality "1"]
[TimeControl "40/5400+30:1800+30"]

{[%evp 14,33,25,30,31,21,43,26,37,21,32,15,25,0,0,-8,15,0,0,0,16,0]} 1. e4 {[%emt 0:00:03]} c5 {[%emt 0:00:17]} 2. Nf3 {[%emt 0:00:05][%cal Bg1f3,Bf3d4,Bd4b5,Bb5a3,Ba3c2][%mdl 32]} Nc6 {[%emt 0:00:37]} 3. d4 {[%emt 0:00:06]} cxd4 {[%emt 0:00:06]} 4. Nxd4 {[%emt 0:00:04]} e5 {[%emt 0:00:05]} 5. Nb5 {[%emt 0:00:04]} d6 {[%emt 0:00:04]} 6. c4 {[%emt 0:00:05]} Be6 $1 {[%emt 0:01:42][%mdl 4] is recently more successful than 6...Be7.} 7. N1c3 {[%emt 0:00:50]} a6 {[%emt 0:00:06]} 8. Na3 {[%emt 0:00:03]} g6 {[%emt 0:00:04] B32: Sicilian: Löwenthal and Kalashnikov Variations.} 9. Nc2 {[%emt 0:04:53]} Bg7 {[%emt 0:00:06]} 10. Be3 {[%emt 0:02:30]} Nf6 {[%emt 0:00:06] White has an edge.} 11. Be2 {[%emt 0:00:21] Prevents Ng4.} (11. Qd2 {with more complications.} O-O 12. Rd1 Rc8 13. Qxd6 Nd4 14. Qxd8 Nxc2+ 15. Kd2) 11... O-O {[%emt 0:00:08]} 12. Qd2 {[%emt 0:03:46]} Rc8 {[%emt 0:00:23] [#]} 13. Rc1 $146 {[%emt 0:07:42]} ({Predecessor:} 13. f3 Nh5 14. O-O Nf4 15. Nd5 Nxe2+ 16. Qxe2 b5 17. Bb6 Qd7 18. cxb5 Bxd5 19. exd5 {0-1 (56) Sliwicka,A (2311)-Pacan Milej,K (2423) Lublin 2020}) 13... Ne7 {[%emt 0:01:49] The position is equal.} 14. Na3 {[%emt 0:07:43]} Nc6 {[%emt 0:00:04]} 15. Nc2 {[%emt 0:06:21]} Ne7 {[%emt 0:00:03]} 16. Na3 {[%emt 0:06:10]} Nc6 {[%emt 0:00:06]} 17. Nc2 {[%emt 0:12:53] Weighted Error Value: White=0.08 (flawless) /Black=0.09 (flawless)} 1/2-1/2

[Event "Czech Championship 2022"]
[Site "Usti nad Labem"]
[Date "2022.05.22"]
[Round "9.5"]
[White "Plat, Vojtech"]
[Black "Finek, Vaclav"]
[Result "1-0"]
[ECO "B21"]
[WhiteElo "2547"]
[BlackElo "2410"]
[Annotator "TA"]
[PlyCount "61"]
[EventDate "2022.05.12"]
[EventType "swiss"]
[EventCountry "CZE"]
[SourceTitle "playchess.com"]
[Source "ChessBase"]
[SourceQuality "1"]
[TimeControl "40/5400+30:1800+30"]

{[%evp 12,61,-30,-25,-3,-1,0,-1,0,-5,60,36,41,51,47,46,26,20,131,65,67,67,53,54,104,112,138,138,199,209,655,658,643,652,619,601,616,594,655,640,858,679,658,645,721,713,1210,571,571,493,483,458]} 1. e4 {[%emt 0:00:03]} c5 {[%emt 0:00:03]} 2. d4 {[%emt 0:00:27]} cxd4 {[%emt 0:00:06]} 3. c3 {[%emt 0:00:03]} dxc3 {[%emt 0:00:15]} 4. Nxc3 {[%emt 0:00:04]} Nc6 {[%emt 0:00:07]} 5. Nf3 {[%emt 0:00:05]} e6 {[%emt 0:00:09]} 6. Bc4 {[%emt 0:00:15]} a6 {[%emt 0:00:08]} 7. O-O {[%emt 0:00:27]} Qc7 {[%emt 0:00:18] B21: Sicilian: 2 f4 and Morra Gambit.} 8. Bb3 {[%emt 0:00:21][%cal Oc3d5]} Nf6 {[%emt 0:01:04] Inhibits Nd5.} 9. Nd5 {[%emt 0:01:01]} exd5 {[%emt 0:17:16] The position is equal.} 10. exd5 {[%emt 0:00:17] [#]} Nd8 $146 {[%emt 0:00:40]} (10... Be7 $1 $11 11. Re1 (11. dxc6 bxc6) 11... O-O 12. dxc6 dxc6) ({Predecessor:} 10... Be7 11. dxc6 dxc6 12. Qd4 O-O 13. Bf4 Qa5 14. Rfe1 Bc5 15. Qd2 Bb4 16. Qc2 Bf5 17. Qc1 Bxe1 18. Qxe1 Qxe1+ 19. Rxe1 Rfe8 20. Kf1 Bd3+ {0-1 (20) Molano Lafuente,I (1941)-Alarcon Casellas,R (2387) Barcelona 2015}) 11. Re1+ {[%emt 0:00:09]} Ne6 $1 {[%emt 0:00:06][%cal Of8b4]} 12. Bg5 $36 {[%emt 0:04:11][%mdl 2048] Threatens to win with Rc1. White fights for an advantage.} Be7 $1 {[%emt 0:01:14][%cal Oe8g8]} 13. Rc1 $1 {[%emt 0:00:16]} Qa5 {[%emt 0:01:58]} 14. dxe6 {[%emt 0:17:10]} fxe6 {[%emt 0:05:42]} (14... dxe6 $11 15. Bd2 Qd8) 15. Re5 {[%emt 0:03:01]} (15. Rc4 $16) 15... Qd8 $1 $14 {[%emt 0:01:06]} 16. Nd4 {[%emt 0:03:54]} O-O {[%emt 0:11:15]} 17. Nf5 {[%emt 0:00:42]} Kh8 {[%emt 0:00:10]} (17... a5 $14) 18. Nxe7 $16 {[%emt 0:00:47] White is much more active.} Qxe7 {[%emt 0:00:46]} 19. Rc7 {[%emt 0:14:01]} Qe8 {[%emt 0:10:01] [#]} (19... Qd8 $16 {keeps fighting.} 20. Qd6 h6) 20. Bc2 $1 $18 {[%emt 0:07:29]} Nd5 $2 {[%emt 0:03:39] [#]} (20... Qf7) 21. Qd3 $1 {[%emt 0:07:24][%csl Gc2][%cal Rd3h7] White is clearly winning.} g6 {[%emt 0:10:30]} 22. Rxd5 {[%emt 0:00:50]} exd5 {[%emt 0:00:08]} 23. Qd4+ {[%emt 0:00:52]} Kg8 {[%emt 0:00:04][%cal Re8e1]} 24. Bd2 {[%emt 0:00:04] Against Qe1+. Bc3 is the strong threat. This bishop pair is nice.} ({Less strong is} 24. Qxd5+ Rf7 25. Bd2 Qe6 $16) 24... Qe2 {[%emt 0:06:26]} 25. Bb3 {[%emt 0:07:26]} Rf5 {[%emt 0:03:35]} 26. Rc1 {[%emt 0:00:53]} Qe5 {[%emt 0:01:17]} 27. Qd3 {[%emt 0:02:40] aiming for Re1.} d6 {[%emt 0:02:34]} 28. Re1 {[%emt 0:00:39] Hoping for g4.} Qf6 {[%emt 0:00:28]} 29. Bc3 {[%emt 0:01:36]} (29. Bxd5+ $142 Kg7 30. Re8) 29... Re5 {[%emt 0:00:05]} 30. Qxd5+ {[%emt 0:00:33]} Rxd5 {[%emt 0:04:11]} 31. Bxd5+ {[%emt 0:00:08] Weighted Error Value: White=0.13 (very precise) /Black=0.49} ({Not} 31. Bxf6 Kf7 32. Bxd5+ Kxf6 $18) 1-0

[Event "Czech Championship 2022"]
[Site "Usti nad Labem"]
[Date "2022.05.22"]
[Round "9.6"]
[White "Cernousek, Lukas"]
[Black "Brejnik, Gustav"]
[Result "1/2-1/2"]
[ECO "B10"]
[WhiteElo "2440"]
[BlackElo "2246"]
[Annotator "TA"]
[PlyCount "133"]
[EventDate "2022.05.12"]
[EventType "swiss"]
[EventCountry "CZE"]
[SourceTitle "playchess.com"]
[Source "ChessBase"]
[SourceQuality "1"]
[TimeControl "40/5400+30:1800+30"]

{[%evp 9,133,0,-5,-5,10,8,20,14,15,14,33,-18,0,0,8,15,0,0,9,-2,8,-58,-57,-55,-66,-95,-50,-44,-39,-65,-60,-70,-86,-91,-86,-124,-117,-164,-157,-161,-164,-168,-172,-164,-166,-181,-184,-213,-179,-179,-171,-176,-160,-187,-170,-174,-169,-168,-168,-206,-176,-329,-328,-328,-228,-229,-231,-317,-302,-284,-140,-294,-276,-279,0,-8,0,-254,-254,-260,-119,-253,-253,-358,-629,-552,-751,-994,-8,-8,-8,-8,-8,-23,-1,-1,0,-1,0,-1,-1,-1,0,0,0,0,0,0,-1,-1,-1,-1,-1,-1,-1,-1,0,0,0,0,0,0,0,0,0,0]} 1. e4 {[%emt 0:00:02]} c6 {[%emt 0:00:48]} 2. Nf3 {[%emt 0:00:06]} d5 {[%emt 0:00:16]} 3. d3 {[%emt 0:00:06]} dxe4 {[%emt 0:00:21]} 4. dxe4 {[%emt 0:00:02]} Qxd1+ {[%emt 0:00:08]} 5. Kxd1 {[%emt 0:00:05]} Nf6 {[%emt 0:00:06]} 6. Nbd2 {[%emt 0:00:09] B10: Caro-Kann: 2 d3 and 2 c4.} g6 $1 {[%emt 0:00:53] The main line 6...g6 scores better than 6...Bg4.} 7. Ne5 {[%emt 0:00:09]} Nbd7 {[%emt 0:12:28]} 8. Nd3 {[%emt 0:00:03]} Ng4 {[%emt 0:08:53]} 9. Nc4 {[%emt 0:05:46] Against Nde5} Bg7 {[%emt 0:03:05][%cal Od7c5] [#]} 10. f4 $146 {[%emt 0:08:26]} ({White should try} 10. c3 $14) ({Predecessor:} 10. Bf4 Nb6 11. Nxb6 axb6 12. f3 Nf6 13. c3 Be6 14. Kc2 O-O 15. Be2 Nd7 16. Be3 {½-½ (70) Rozum,I (2546)-Kukhmazov,A (2442) Moscow 2021}) 10... b6 {[%emt 0:08:22]} 11. Be2 {[%emt 0:18:22]} h5 {[%emt 0:08:32]} 12. h3 {[%emt 0:09:25]} Ngf6 {[%emt 0:00:28]} 13. e5 {[%emt 0:08:45]} Nd5 {[%emt 0:01:00]} 14. Bd2 {[%emt 0:00:51]} Ba6 {[%emt 0:09:50]} 15. Nb4 {[%emt 0:01:42]} ({White should play} 15. b3 $1 $11) 15... Nxb4 $15 {[%emt 0:01:27]} 16. Bxb4 {[%emt 0:00:03]} Rd8 $36 {[%emt 0:20:00][%mdl 2048] White is under pressure.} 17. Nd2 {[%emt 0:15:49]} Bxe2+ {[%emt 0:00:45]} 18. Kxe2 {[%emt 0:01:29]} Nf8 {[%emt 0:00:59]} 19. Bc3 {[%emt 0:10:46]} Ne6 {[%emt 0:00:36]} 20. Raf1 {[%emt 0:09:15]} Bh6 {[%emt 0:05:30]} 21. Ke3 {[%emt 0:02:25]} g5 {[%emt 0:00:52][%cal Bg6g5,Bg5g4][%mdl 32]} 22. f5 {[%emt 0:03:50]} g4+ {[%emt 0:00:54]} 23. Kf2 {[%emt 0:00:37]} (23. Ke2 $17 Nf4+ 24. Kf2) 23... Bxd2 $19 {[%emt 0:08:05]} 24. fxe6 {[%emt 0:00:01]} Bxc3 {[%emt 0:02:08]} ({And not} 24... fxe6 25. hxg4 Rf8+ 26. Ke2 (26. Kg3 Rxf1 27. Rxf1 Bxc3 $17) 26... Rxf1 27. Rxf1 Bxc3 28. bxc3 $17) 25. exf7+ {[%emt 0:02:55]} Kxf7 {[%emt 0:00:01]} 26. bxc3 {[%emt 0:00:08]} gxh3 {[%emt 0:00:24]} 27. Rxh3 {[%emt 0:00:28][%mdl 4096] Endgame KRR-KRR} Ke6 {[%emt 0:00:04]} 28. Ke2 {[%emt 0:02:12]} Rdg8 {[%emt 0:00:42]} ({Not} 28... Kxe5 29. Rfh1 $17) 29. g3 {[%emt 0:00:30]} Rg5 {[%emt 0:00:05]} ({Worse is} 29... Kxe5 30. Rf3 $17) 30. Kd2 {[%emt 0:00:31]} Rxe5 {[%emt 0:02:20]} 31. Rfh1 {[%emt 0:00:25]} Rg8 {[%emt 0:00:37]} 32. Rxh5 {[%emt 0:00:18]} Rxh5 {[%emt 0:00:10]} 33. Rxh5 {[%emt 0:00:01]} Rxg3 {[%emt 0:00:09] KR-KR} 34. a4 {[%emt 0:00:53]} a5 {[%emt 0:00:36]} 35. Rh8 $2 {[%emt 0:00:52]} (35. Rh4) 35... Rg4 {[%emt 0:03:21]} 36. Rb8 {[%emt 0:00:11]} Rxa4 {[%emt 0:00:06] Threatens to win with ...b5.} 37. Rxb6 {[%emt 0:00:11]} Kd5 {[%emt 0:00:13]} 38. Rb7 {[%emt 0:00:43]} e5 {[%emt 0:00:53]} 39. Rd7+ {[%emt 0:00:11]} Ke4 {[%emt 0:00:26]} (39... Ke6 $19 40. Rd8 Ra1) 40. Rc7 {[%emt 0:01:07]} (40. Rh7 $17 Kd5 41. Rd7+ Kc5 42. Rd8) 40... Rc4 $1 {[%emt 0:01:56]} 41. Ra7 {[%emt 0:00:57]} Ra4 {[%emt 0:08:18]} (41... a4 $1 $19 {Strongly threatening ...Kf3.} 42. Rh7 Kd5 43. Rd7+ Ke6) 42. Rc7 $1 $11 {[%emt 0:10:57]} Kd5 $2 {[%emt 0:00:22]} (42... Ra1 $11) 43. Rd7+ $1 $19 {[%emt 0:00:14]} Ke6 {[%emt 0:00:38]} 44. Ra7 {[%emt 0:03:45]} Kd6 {[%emt 0:10:35]} (44... Ra1 $1 $19 {and Black stays clearly on top. ...a4 is the strong threat.} 45. Ra8 Kd7) 45. Ra8 {[%emt 0:00:17] [#]} (45. Kc1 $17 {was the only defense.}) 45... Ra1 $1 {[%emt 0:02:31] aiming for ...a4.} 46. Rd8+ {[%emt 0:02:20] [#]} (46. c4 $142) 46... Ke7 $1 {[%emt 0:00:08]} 47. Ra8 {[%emt 0:00:43]} a4 {[%emt 0:01:45]} 48. Ra6 {[%emt 0:05:37]} a3 $2 {[%emt 0:05:08]} (48... Kd6 $19 49. c4 a3) 49. Rxc6 $11 {[%emt 0:01:28]} a2 {[%emt 0:00:10]} 50. Ra6 {[%emt 0:00:05]} e4 {[%emt 0:00:08]} 51. Ke2 {[%emt 0:02:55]} e3 {[%emt 0:00:28]} 52. Ra7+ {[%emt 0:01:12] The position is equal.} Kd6 {[%emt 0:00:28]} 53. Ra6+ {[%emt 0:00:26]} Kc7 {[%emt 0:01:03]} 54. Ra7+ {[%emt 0:00:32]} Kb6 {[%emt 0:00:20]} 55. Ra8 {[%emt 0:00:16]} Kb7 {[%emt 0:01:08]} 56. Ra3 {[%emt 0:00:08]} Kb6 {[%emt 0:00:35]} 57. Ra8 {[%emt 0:00:08]} Kc5 {[%emt 0:00:27]} 58. Rc8+ {[%emt 0:01:14]} Kb5 {[%emt 0:00:13]} 59. Rb8+ $1 {[%emt 0:00:07]} Kc4 {[%emt 0:00:06]} (59... Kc6 $5 60. Ra8 Kb6 $11) 60. Rc8+ {[%emt 0:00:05]} Kd5 {[%emt 0:01:40] White must now prevent ...Rg1.} 61. Rd8+ {[%emt 0:00:17]} Kc6 {[%emt 0:00:33] ( -> ...Rg1)} 62. Ra8 {[%emt 0:00:10]} Kb7 {[%emt 0:00:17]} 63. Ra3 {[%emt 0:00:07]} Kb8 {[%emt 0:00:05]} 64. Ra4 {[%emt 0:00:07]} Kc7 {[%emt 0:00:19]} 65. Ra7+ {[%emt 0:00:07]} Kb6 {[%emt 0:00:04]} 66. Ra8 {[%emt 0:00:06]} Kb5 {[%emt 0:00:05]} 67. Rb8+ {[%emt 0:00:42] Whites escaped into a draw.  Weighted Error Value: White=0.24 (precise) /Black=0.30} 1/2-1/2

[Event "Czech Championship 2022"]
[Site "Usti nad Labem"]
[Date "2022.05.22"]
[Round "9.7"]
[White "Sorm, Daniel"]
[Black "Rasik, Vitezslav"]
[Result "0-1"]
[ECO "B06"]
[WhiteElo "2306"]
[BlackElo "2433"]
[Annotator "TA"]
[PlyCount "102"]
[EventDate "2022.05.12"]
[EventType "swiss"]
[EventCountry "CZE"]
[SourceTitle "playchess.com"]
[Source "ChessBase"]
[SourceQuality "1"]
[TimeControl "40/5400+30:1800+30"]

{[%evp 14,102,23,26,40,29,50,25,28,23,31,-45,-38,-58,-48,-63,-52,-71,-69,-82,-54,-95,-93,-89,-98,-89,-89,-70,-72,-252,-245,-288,-216,-197,-184,-174,-187,-179,-180,-173,-173,-162,-152,-164,-88,-212,-164,-165,-132,-128,-129,-277,-206,-222,-212,-195,-181,-194,-184,-267,-266,-534,-267,-259,-262,-260,-254,-251,-234,-235,-211,-211,-211,-211,-212,-212,-174,-174,-172,-2029,-1865,-1336,-1527,-29971,-29973,-29974,-29976,-29974,-29975,-6749,-5431]} 1. e4 {[%emt 0:00:03]} d6 {[%emt 0:05:28]} 2. d4 {[%emt 0:00:18]} g6 {[%emt 0:00:10]} 3. Nc3 {[%emt 0:00:49]} Bg7 {[%emt 0:00:12]} 4. Be3 {[%emt 0:00:22]} a6 {[%emt 0:02:59]} 5. Qd2 {[%emt 0:01:17]} b5 {[%emt 0:01:48]} 6. f3 {[%emt 0:01:17]} Nd7 {[%emt 0:01:46]} 7. h4 {[%emt 0:00:39]} h5 {[%emt 0:00:22] 7...h6 might become the main line.} 8. Nh3 {[%emt 0:01:07]} c5 {[%emt 0:07:05] B06: Modern Defence.} 9. dxc5 {[%emt 0:06:20]} Nxc5 {[%emt 0:02:46] [#]} 10. Bxc5 $146 {[%emt 0:05:50]} ({Predecessor:} 10. O-O-O Bxh3 11. Rxh3 Rc8 12. Bd4 Nf6 13. Nd5 Ncd7 14. Kb1 O-O 15. Be2 Nxd5 16. Bxg7 Kxg7 17. exd5 {0-1 (37) De Boer,E (2316)-Gurevich,M (2579) Maastricht 2019}) 10... dxc5 {[%emt 0:03:04] White has an edge.} 11. Qxd8+ {[%emt 0:00:11]} Kxd8 {[%emt 0:00:02]} 12. Rd1+ {[%emt 0:03:49]} ({Better is} 12. Ng5 $14 Bxc3+ 13. bxc3) 12... Bd7 $15 {[%emt 0:13:33]} 13. Ng5 {[%emt 0:04:51]} Nh6 {[%emt 0:02:23]} 14. g3 {[%emt 0:07:25]} e6 {[%emt 0:16:40]} 15. Rh2 {[%emt 0:04:41]} Ke7 {[%emt 0:01:26]} 16. Nb1 {[%emt 0:01:56]} Bc6 {[%emt 0:07:14]} 17. Bh3 {[%emt 0:07:47]} Rhd8 {[%emt 0:05:35]} 18. c3 {[%emt 0:03:14]} Rxd1+ {[%emt 0:01:34]} (18... a5 {keeps more tension.} 19. Rc2 Rxd1+ 20. Kxd1 Rd8+) 19. Kxd1 {[%emt 0:00:07]} Be5 {[%emt 0:00:28]} 20. f4 {[%emt 0:02:18]} Bc7 {[%emt 0:00:21]} 21. Ke1 $2 {[%emt 0:05:43] [#]} (21. e5 $17 {is the only way for White.}) 21... e5 $1 $19 {[%emt 0:05:34]} 22. f5 {[%emt 0:02:09]} gxf5 {[%emt 0:00:32]} 23. exf5 {[%emt 0:00:06]} e4 {[%emt 0:03:33]} 24. Nxe4 {[%emt 0:00:36]} Bxe4 {[%emt 0:01:42] This bishop pair is nice.} 25. Re2 {[%emt 0:00:05]} Bxg3+ {[%emt 0:00:56]} 26. Kf1 {[%emt 0:00:21] [#]} Kf6 $1 {[%emt 0:00:56]} 27. Rxe4 {[%emt 0:00:11]} Nxf5 {[%emt 0:00:56]} 28. Nd2 {[%emt 0:01:22]} Nd6 {[%emt 0:03:01]} (28... Nxh4 29. Re2 Kg6 30. Ne4 $17) (28... Rd8 $19 29. Nf3 Rd1+ 30. Kg2 Bd6) 29. b4 {[%emt 0:01:39]} Rg8 {[%emt 0:04:23]} 30. Re2 {[%emt 0:01:01]} cxb4 {[%emt 0:00:28]} (30... Bxh4 31. bxc5 Ne8 32. Ne4+ Kg7 33. Bc8 $11) 31. cxb4 {[%emt 0:00:12]} Bxh4 {[%emt 0:00:38]} 32. Nb3 {[%emt 0:02:37]} (32. Ne4+ $17 Nxe4 33. Rxe4) 32... Rg3 {[%emt 0:01:36]} 33. Bd7 {[%emt 0:02:11]} Rf3+ {[%emt 0:01:58]} 34. Kg2 {[%emt 0:01:53]} Rf4 {[%emt 0:00:08]} 35. a3 {[%emt 0:00:44]} Rc4 {[%emt 0:00:27]} 36. Nd2 {[%emt 0:05:13]} (36. Nc5 $142) 36... Rc7 {[%emt 0:00:39]} 37. Be8 {[%emt 0:01:29]} (37. Bh3 {keeps fighting.}) 37... Bg5 {[%emt 0:01:54] Threatens to win with ...Bxd2.} 38. Ne4+ {[%emt 0:01:07]} Nxe4 {[%emt 0:00:13]} 39. Rxe4 {[%emt 0:00:06][%mdl 4096] Endgame KRB-KRB} Rc2+ {[%emt 0:02:07]} 40. Kf1 {[%emt 0:00:53]} Ra2 {[%emt 0:02:53]} 41. Re2 {[%emt 0:33:18]} Rxe2 {[%emt 0:10:36]} 42. Kxe2 {[%emt 0:00:00] KB-KB} Bc1 {[%emt 0:00:05]} 43. Bc6 {[%emt 0:00:00]} Ke7 {[%emt 0:07:56]} (43... Bxa3 44. Bb7 $17) 44. Bb7 {[%emt 0:00:29]} Kd6 {[%emt 0:01:04]} ({Not} 44... Bxa3 45. Bxa6 Bxb4 46. Bxb5 $11) 45. Bxa6 {[%emt 0:00:37]} Kc6 {[%emt 0:00:15]} ({Inferior is} 45... Bxa3 46. Bxb5 Bxb4 47. Ke3 $11) 46. a4 $2 {[%emt 0:02:06]} (46. Kd3) 46... bxa4 {[%emt 0:00:29]} 47. Bc4 {[%emt 0:00:14]} f6 {[%emt 0:00:56]} 48. Kd3 {[%emt 0:01:15]} h4 {[%emt 0:02:39][%cal Bh5h4,Bh4h3,Bh3h2][%mdl 32]} 49. Kc2 {[%emt 0:00:29] [#]} h3 $1 {[%emt 0:02:52]} 50. Bf1 {[%emt 0:01:44]} h2 {[%emt 0:00:07]} 51. Bg2+ {[%emt 0:01:16]} Kb5 {[%emt 0:00:06] Weighted Error Value: White=0.71/Black=0.19 (very precise)} 0-1